[Event "V Copa Marcel Duchamp 2022"]
[Site "Montevideo"]
[Date "2022.02.19"]
[Round "9.13"]
[White "Lujan, Carolina"]
[Black "Mateus, Martha"]
[Result "1-0"]
[ECO "B90"]
[WhiteElo "2334"]
[BlackElo "2019"]
[Annotator "ChessBase"]
[PlyCount "87"]
[EventDate "2022.02.12"]
[EventCountry "URU"]
[SourceTitle "playchess.com"]
[Source "ChessBase"]
[SourceQuality "1"]
[TimeControl "5400+30"]

1. e4 {[%emt 0:04:38]} c5 2. Nf3 {[%emt 0:00:39]} d6 {[%emt 0:01:58]} 3. d4 {[%emt 0:00:16]} cxd4 {[%emt 0:00:11]} 4. Nxd4 {[%emt 0:00:05]} Nf6 {[%emt 0:00:03]} 5. Nc3 {[%emt 0:00:08]} a6 {[%emt 0:00:03]} 6. Bd3 {[%emt 0:00:09]} e5 {[%emt 0:00:05]} 7. Nde2 {[%emt 0:00:09]} Be7 {[%emt 0:00:58]} 8. O-O {[%emt 0:00:18]} Be6 {[%emt 0:00:48]} 9. Ng3 {[%emt 0:03:01]} O-O {[%emt 0:09:06]} 10. Nd5 {[%emt 0:04:08]} Nbd7 {[%emt 0:06:21]} 11. c4 {[%emt 0:02:30]} Re8 {[%emt 0:07:26]} 12. h3 {[%emt 0:15:51]} Bf8 {[%emt 0:05:23]} 13. Be3 {[%emt 0:04:04]} Rc8 {[%emt 0:02:07]} 14. b4 {[%emt 0:02:19]} Bxd5 {[%emt 0:17:24]} 15. cxd5 {[%emt 0:01:55]} Nb6 {[%emt 0:07:21]} 16. Qb3 {[%emt 0:01:53]} g6 {[%emt 0:13:29]} 17. Rac1 {[%emt 0:10:07]} h5 {[%emt 0:03:21]} 18. b5 {[%emt 0:07:21]} a5 {[%emt 0:02:13]} 19. Rxc8 {[%emt 0:00:39]} Nxc8 {[%emt 0:00:06]} 20. b6 {[%emt 0:00:17]} Nd7 {[%emt 0:11:35]} 21. Bb5 {[%emt 0:02:40]} Re7 {[%emt 0:01:02]} 22. Qa3 {[%emt 0:01:56]} h4 {[%emt 0:07:49]} 23. Ne2 {[%emt 0:00:15]} Nc5 {[%emt 0:02:10]} 24. Qxa5 {[%emt 0:15:21]} Nxe4 {[%emt 0:00:41]} 25. Rc1 {[%emt 0:02:18]} Nc5 {[%emt 0:00:22]} 26. Bg5 {[%emt 0:07:33]} Qxb6 {[%emt 0:00:10]} 27. Qxb6 {[%emt 0:00:09]} Nxb6 {[%emt 0:00:03]} 28. Bxe7 {[%emt 0:00:05]} Bxe7 {[%emt 0:00:04]} 29. Nc3 {[%emt 0:00:31]} e4 {[%emt 0:01:47]} 30. Nxe4 {[%emt 0:04:41]} Nxe4 {[%emt 0:00:04]} 31. Re1 {[%emt 0:00:03]} Bf6 {[%emt 0:01:11]} 32. Rxe4 {[%emt 0:00:14]} Nxd5 {[%emt 0:00:06]} 33. Re8+ {[%emt 0:00:37]} Kg7 {[%emt 0:00:04]} 34. Rb8 {[%emt 0:00:17]} b6 {[%emt 0:00:53]} 35. Bc4 {[%emt 0:00:23]} Nc3 {[%emt 0:00:56]} 36. Rxb6 {[%emt 0:00:24]} d5 {[%emt 0:00:03]} 37. Bb3 {[%emt 0:00:15]} Bd4 {[%emt 0:00:28]} 38. Rb7 {[%emt 0:01:53]} Kf6 {[%emt 0:00:34]} 39. a4 {[%emt 0:01:30]} Ke6 {[%emt 0:00:28]} 40. a5 {[%emt 0:00:45]} Ne4 {[%emt 0:00:29]} 41. a6 {[%emt 0:00:39]} Bxf2+ {[%emt 0:00:19]} 42. Kf1 {[%emt 0:00:58]} Bc5 {[%emt 0:01:08]} 43. Bc2 {[%emt 0:01:30]} Nd6 {[%emt 0:00:37]} 44. a7 {[%emt 0:00:49]} 1-0

[Event "V Copa Marcel Duchamp 2022"]
[Site "Montevideo"]
[Date "2022.02.19"]
[Round "9.14"]
[White "Miranda, Rafael"]
[Black "Siddeley, Hugh"]
[Result "1-0"]
[ECO "B32"]
[WhiteElo "2264"]
[BlackElo "2000"]
[Annotator "ChessBase"]
[PlyCount "65"]
[EventDate "2022.02.12"]
[EventCountry "URU"]
[SourceTitle "playchess.com"]
[Source "ChessBase"]
[SourceQuality "1"]
[TimeControl "5400+30"]

1. e4 {[%emt 0:00:05]} c5 {[%emt 0:02:36]} 2. Nf3 {[%emt 0:00:06]} Nc6 {[%emt 0:00:05]} 3. d4 {[%emt 0:00:10]} cxd4 {[%emt 0:00:04]} 4. Nxd4 {[%emt 0:00:03]} e5 {[%emt 0:00:08]} 5. Nb5 {[%emt 0:00:04]} d6 {[%emt 0:00:04]} 6. c4 {[%emt 0:00:03]} Be7 {[%emt 0:00:06]} 7. N1c3 {[%emt 0:00:04]} a6 {[%emt 0:00:05]} 8. Na3 {[%emt 0:00:03]} f5 {[%emt 0:00:15]} 9. exf5 {[%emt 0:00:09]} Bxf5 {[%emt 0:00:01]} 10. Nc2 {[%emt 0:00:07]} Nf6 {[%emt 0:01:50]} 11. Ne3 {[%emt 0:00:05]} Be6 {[%emt 0:00:15]} 12. g3 {[%emt 0:00:05]} O-O {[%emt 0:03:07]} 13. Bg2 {[%emt 0:00:05]} Rc8 {[%emt 0:03:47]} 14. Ncd5 {[%emt 0:06:43]} b5 {[%emt 0:03:47]} 15. cxb5 {[%emt 0:01:36]} axb5 {[%emt 0:00:06]} 16. O-O {[%emt 0:00:16]} Nd4 {[%emt 0:07:25]} 17. b4 {[%emt 0:05:44]} Nxd5 {[%emt 0:10:24]} 18. Nxd5 {[%emt 0:01:14]} Kh8 {[%emt 0:09:39]} 19. a3 {[%emt 0:13:22]} Bf6 {[%emt 0:11:10]} 20. Bb2 {[%emt 0:01:34]} Rc4 {[%emt 0:13:17]} 21. Rc1 {[%emt 0:05:38]} Rxc1 {[%emt 0:00:22]} 22. Bxc1 {[%emt 0:00:06]} Qb8 {[%emt 0:04:11]} 23. Bb2 {[%emt 0:01:26]} Nf5 {[%emt 0:02:09]} 24. Qd2 {[%emt 0:03:37]} Bd8 {[%emt 0:06:14]} 25. Rc1 {[%emt 0:05:37]} Ne7 {[%emt 0:03:18]} 26. Nxe7 {[%emt 0:06:28]} Bxe7 {[%emt 0:00:02]} 27. Bd5 {[%emt 0:00:18]} Bh3 {[%emt 0:02:26]} 28. Qe3 {[%emt 0:03:25]} Bd8 {[%emt 0:03:02]} 29. Rc6 {[%emt 0:01:06]} Bd7 {[%emt 0:00:12]} 30. Ra6 {[%emt 0:00:49]} Qc8 {[%emt 0:06:18]} 31. Rxd6 {[%emt 0:01:16]} Bc7 {[%emt 0:01:21]} 32. Qxe5 {[%emt 0:00:26]} Rf6 {[%emt 0:01:04]} 33. Qxf6 {[%emt 0:00:05]} 1-0

[Event "V Copa Marcel Duchamp 2022"]
[Site "Montevideo"]
[Date "2022.02.19"]
[Round "9.15"]
[White "Benitez, Andres"]
[Black "Michailov, Matias"]
[Result "0-1"]
[ECO "C03"]
[WhiteElo "1978"]
[BlackElo "2248"]
[Annotator "ChessBase"]
[PlyCount "74"]
[EventDate "2022.02.12"]
[EventCountry "URU"]
[SourceTitle "playchess.com"]
[Source "ChessBase"]
[SourceQuality "1"]
[TimeControl "5400+30"]

1. e4 {[%emt 0:00:04]} e6 {[%emt 0:01:27]} 2. d4 {[%emt 0:00:32]} d5 {[%emt 0:00:17]} 3. Nd2 {[%emt 0:00:32]} a6 {[%emt 0:02:42]} 4. Ngf3 {[%emt 0:00:13]} c5 {[%emt 0:00:08]} 5. exd5 {[%emt 0:00:28]} exd5 {[%emt 0:00:10]} 6. dxc5 {[%emt 0:00:40]} Bxc5 {[%emt 0:00:21]} 7. Nb3 {[%emt 0:00:26]} Ba7 {[%emt 0:00:54]} 8. Be2 {[%emt 0:01:41]} Nf6 {[%emt 0:00:35]} 9. O-O {[%emt 0:00:37]} O-O {[%emt 0:00:41]} 10. Bg5 {[%emt 0:00:21]} Nc6 {[%emt 0:04:28]} 11. c3 {[%emt 0:02:30]} Bg4 {[%emt 0:07:42]} 12. Nfd4 {[%emt 0:10:32]} Bxe2 {[%emt 0:03:37]} 13. Nxe2 {[%emt 0:02:47]} Re8 {[%emt 0:03:13]} 14. Ned4 {[%emt 0:00:46]} h6 {[%emt 0:02:56]} 15. Be3 {[%emt 0:17:53]} Ne5 {[%emt 0:06:48]} 16. Nf5 {[%emt 0:07:47]} Bb8 {[%emt 0:04:40]} 17. Bd4 {[%emt 0:06:03]} Nc6 {[%emt 0:02:09]} 18. Qf3 {[%emt 0:08:50]} Nxd4 {[%emt 0:02:00]} 19. Nbxd4 {[%emt 0:01:01]} Be5 {[%emt 0:08:11]} 20. Rfd1 {[%emt 0:04:52]} Qc7 {[%emt 0:02:18]} 21. g3 {[%emt 0:01:36]} Rad8 {[%emt 0:01:24]} 22. Ne3 {[%emt 0:01:52]} Qb6 {[%emt 0:04:26]} 23. Rab1 {[%emt 0:01:35]} g6 {[%emt 0:02:33]} 24. Ng4 {[%emt 0:01:51]} Nxg4 {[%emt 0:02:04]} 25. Qxg4 {[%emt 0:01:01]} Bg7 {[%emt 0:02:02]} 26. Qf3 {[%emt 0:02:15]} Qa5 {[%emt 0:08:01]} 27. Ra1 {[%emt 0:01:53]} Qa4 {[%emt 0:00:55]} 28. Rd2 {[%emt 0:01:34]} h5 {[%emt 0:00:51]} 29. a3 {[%emt 0:03:23]} h4 {[%emt 0:06:02]} 30. Rad1 {[%emt 0:04:06]} Re4 {[%emt 0:03:54]} 31. Qg2 {[%emt 0:08:38]} Rde8 {[%emt 0:03:57]} 32. Qf1 {[%emt 0:00:58]} Bh6 {[%emt 0:03:44]} 33. Rd3 {[%emt 0:03:35]} Qc4 {[%emt 0:01:46]} 34. Kg2 {[%emt 0:01:21]} Qc8 {[%emt 0:02:40]} 35. Kg1 {[%emt 0:03:15]} b5 {[%emt 0:02:23]} 36. f4 {[%emt 0:00:27]} hxg3 {[%emt 0:03:07]} 37. hxg3 {[%emt 0:00:01]} Qg4 {[%emt 0:00:10]} 0-1

[Event "V Copa Marcel Duchamp 2022"]
[Site "Montevideo"]
[Date "2022.02.19"]
[Round "9.16"]
[White "Sanhueza, Cristian"]
[Black "Meza, Anahi"]
[Result "1-0"]
[ECO "B35"]
[WhiteElo "2242"]
[BlackElo "1996"]
[Annotator "ChessBase"]
[PlyCount "107"]
[EventDate "2022.02.12"]
[EventCountry "URU"]
[SourceTitle "playchess.com"]
[Source "ChessBase"]
[SourceQuality "1"]
[TimeControl "5400+30"]

1. e4 {[%emt 0:16:32]} c5 {[%emt 0:00:05]} 2. Nf3 {[%emt 0:00:07]} Nc6 {[%emt 0:00:15]} 3. d4 {[%emt 0:00:10]} cxd4 {[%emt 0:00:07]} 4. Nxd4 {[%emt 0:00:09]} g6 {[%emt 0:00:06]} 5. Nc3 {[%emt 0:00:58]} Bg7 {[%emt 0:00:06]} 6. Be3 {[%emt 0:00:05]} Nf6 {[%emt 0:00:03]} 7. Bc4 {[%emt 0:00:24]} O-O {[%emt 0:00:06]} 8. Bb3 {[%emt 0:00:08]} Re8 {[%emt 0:00:43]} 9. O-O {[%emt 0:03:23]} d6 {[%emt 0:02:11]} 10. h3 {[%emt 0:01:27]} Na5 {[%emt 0:00:44]} 11. Re1 {[%emt 0:04:20]} b6 {[%emt 0:06:35]} 12. Qd2 {[%emt 0:09:16]} Bb7 {[%emt 0:09:11]} 13. Bh6 {[%emt 0:09:13]} Nxb3 {[%emt 0:07:25]} 14. axb3 {[%emt 0:00:20]} Bh8 {[%emt 0:07:58]} 15. Qe3 {[%emt 0:11:36]} Qc8 {[%emt 0:11:51]} 16. Ra4 {[%emt 0:15:13]} a6 {[%emt 0:06:34]} 17. Raa1 {[%emt 0:03:23]} b5 {[%emt 0:00:49]} 18. Qd3 {[%emt 0:00:48]} Qc7 {[%emt 0:05:30]} 19. Rad1 {[%emt 0:01:45]} Rac8 {[%emt 0:00:49]} 20. Re2 {[%emt 0:00:55]} Qc5 {[%emt 0:04:30]} 21. Nf3 {[%emt 0:00:59]} Qh5 {[%emt 0:13:39]} 22. Bc1 {[%emt 0:03:28]} Nd7 {[%emt 0:01:56]} 23. Nd5 {[%emt 0:01:28]} Nf6 {[%emt 0:05:21]} 24. c4 {[%emt 0:02:03]} bxc4 {[%emt 0:02:01]} 25. bxc4 {[%emt 0:00:50]} Nd7 {[%emt 0:01:31]} 26. b3 {[%emt 0:01:01]} a5 {[%emt 0:05:40]} 27. Ra2 {[%emt 0:05:57]} Nc5 {[%emt 0:00:45]} 28. Qe3 {[%emt 0:00:12]} a4 {[%emt 0:04:46]} 29. bxa4 {[%emt 0:00:52]} Ba6 {[%emt 0:00:15]} 30. Nb6 {[%emt 0:04:24]} Rb8 {[%emt 0:00:07]} 31. a5 {[%emt 0:00:05]} Bb7 {[%emt 0:01:30]} 32. Nd5 {[%emt 0:00:39]} Ba6 {[%emt 0:01:17]} 33. Nf4 {[%emt 0:00:25]} Qh6 {[%emt 0:00:24]} 34. Qe2 {[%emt 0:00:12]} Qg7 {[%emt 0:00:20]} 35. Nd5 {[%emt 0:00:54]} Rb7 {[%emt 0:00:44]} 36. Be3 {[%emt 0:00:39]} Ne6 {[%emt 0:01:01]} 37. Rc2 {[%emt 0:02:46]} Qf8 {[%emt 0:00:46]} 38. Qd2 {[%emt 0:00:19]} Bg7 {[%emt 0:00:26]} 39. Nd4 {[%emt 0:00:12]} Nc5 {[%emt 0:00:10]} 40. f3 {[%emt 0:00:17]} Bxd4 {[%emt 0:00:47]} 41. Qxd4 {[%emt 0:01:10]} Rb3 {[%emt 0:00:29]} 42. Nb6 {[%emt 0:01:18]} Ra3 {[%emt 0:00:18]} 43. Bc1 {[%emt 0:00:16]} Rxa5 {[%emt 0:00:14]} 44. Bb2 {[%emt 0:00:15]} f6 {[%emt 0:00:17]} 45. Bc3 {[%emt 0:01:02]} Ne6 {[%emt 0:01:11]} 46. Qd3 {[%emt 0:00:38]} Rg5 {[%emt 0:00:28]} 47. Bd2 {[%emt 0:00:15]} Rc5 {[%emt 0:00:28]} 48. Nd7 {[%emt 0:00:15]} Qf7 {[%emt 0:00:12]} 49. Nxc5 {[%emt 0:00:14]} dxc5 {[%emt 0:00:45]} 50. Be3 {[%emt 0:01:16]} Rb8 {[%emt 0:00:44]} 51. Ra2 {[%emt 0:00:21]} Rb6 {[%emt 0:00:43]} 52. Rda1 {[%emt 0:00:48]} Rd6 {[%emt 0:00:36]} 53. Qb3 {[%emt 0:00:34]} Bc8 {[%emt 0:00:50]} 54. Ra8 1-0

[Event "V Copa Marcel Duchamp 2022"]
[Site "Montevideo"]
[Date "2022.02.19"]
[Round "9.17"]
[White "Dotta, Gian Franco"]
[Black "Curi, Gabriel"]
[Result "0-1"]
[ECO "A64"]
[WhiteElo "1991"]
[BlackElo "2205"]
[Annotator "ChessBase"]
[PlyCount "68"]
[EventDate "2022.02.12"]
[EventCountry "URU"]
[SourceTitle "playchess.com"]
[Source "ChessBase"]
[SourceQuality "1"]
[TimeControl "5400+30"]

1. d4 {[%emt 0:04:41]} Nf6 {[%emt 0:00:51]} 2. c4 {[%emt 0:00:08]} e6 {[%emt 0:00:48]} 3. g3 {[%emt 0:00:08]} c5 {[%emt 0:03:11]} 4. d5 {[%emt 0:00:27]} exd5 {[%emt 0:00:05]} 5. cxd5 {[%emt 0:00:05]} d6 {[%emt 0:00:04]} 6. Nc3 {[%emt 0:00:39]} g6 {[%emt 0:00:08]} 7. Nf3 Bg7 {[%emt 0:00:06]} 8. Bg2 {[%emt 0:00:55]} O-O {[%emt 0:00:06]} 9. O-O {[%emt 0:00:09]} a6 {[%emt 0:00:06]} 10. a4 {[%emt 0:00:20]} Re8 {[%emt 0:01:02]} 11. Nd2 {[%emt 0:04:27]} Nbd7 {[%emt 0:00:30]} 12. Re1 {[%emt 0:00:52]} Rb8 {[%emt 0:01:36]} 13. a5 {[%emt 0:00:50]} b5 {[%emt 0:06:04]} 14. axb6 {[%emt 0:02:10]} Nxb6 {[%emt 0:00:07]} 15. e4 {[%emt 0:01:51]} Ng4 {[%emt 0:12:41]} 16. Qe2 {[%emt 0:12:15]} f5 {[%emt 0:07:13]} 17. h3 {[%emt 0:10:09]} Nf6 {[%emt 0:02:34]} 18. Qd3 {[%emt 0:02:58]} Qc7 {[%emt 0:00:32]} 19. Nc4 Nxc4 {[%emt 0:01:30]} 20. Qxc4 {[%emt 0:02:18]} Rb4 {[%emt 0:01:59]} 21. Qd3 {[%emt 0:00:28]} fxe4 {[%emt 0:01:42]} 22. Nxe4 {[%emt 0:02:03]} Nxe4 {[%emt 0:00:51]} 23. Rxe4 {[%emt 0:01:28]} Rexe4 {[%emt 0:09:59]} 24. Bxe4 {[%emt 0:00:06]} Qe7 {[%emt 0:00:29]} 25. f3 {[%emt 0:06:12]} Bd4+ 26. Kh1 Bxb2 {[%emt 0:16:23]} 27. Bxb2 {[%emt 0:02:59]} Rxb2 {[%emt 0:00:08]} 28. Bxg6 {[%emt 0:10:04]} Qg7 {[%emt 0:03:32]} 29. Re1 {[%emt 0:02:54]} Qxg6 {[%emt 0:09:23]} 30. Qxg6+ {[%emt 0:00:08]} hxg6 {[%emt 0:00:04]} 31. Re8+ {[%emt 0:00:11]} Kf7 {[%emt 0:00:04]} 32. Rxc8 {[%emt 0:00:05]} a5 {[%emt 0:00:03]} 33. Kg1 {[%emt 0:07:20]} a4 {[%emt 0:02:22]} 34. Ra8 {[%emt 0:00:27]} c4 {[%emt 0:01:02]} 0-1

[Event "V Copa Marcel Duchamp 2022"]
[Site "Montevideo"]
[Date "2022.02.19"]
[Round "9.18"]
[White "Fernandez, Maria Florencia"]
[Black "Garcia, Luis E."]
[Result "1-0"]
[ECO "A59"]
[WhiteElo "2200"]
[BlackElo "2192"]
[Annotator "ChessBase"]
[PlyCount "89"]
[EventDate "2022.02.12"]
[EventCountry "URU"]
[SourceTitle "playchess.com"]
[Source "ChessBase"]
[SourceQuality "1"]
[TimeControl "5400+30"]

1. d4 {[%emt 0:09:45]} Nf6 {[%emt 0:00:10]} 2. c4 {[%emt 0:00:05]} c5 {[%emt 0:00:11]} 3. d5 {[%emt 0:00:05]} b5 {[%emt 0:00:08]} 4. cxb5 {[%emt 0:00:04]} a6 {[%emt 0:00:05]} 5. bxa6 {[%emt 0:00:03]} Bxa6 {[%emt 0:00:07]} 6. Nc3 {[%emt 0:00:06]} g6 {[%emt 0:00:11]} 7. Nf3 {[%emt 0:00:20]} d6 {[%emt 0:00:14]} 8. e4 Bxf1 {[%emt 0:00:06]} 9. Kxf1 {[%emt 0:00:07]} Bg7 {[%emt 0:00:09]} 10. g3 {[%emt 0:00:04]} O-O {[%emt 0:00:16]} 11. Kg2 {[%emt 0:00:02]} Qb6 {[%emt 0:01:43]} 12. Qc2 {[%emt 0:00:24]} Na6 {[%emt 0:01:02]} 13. a4 {[%emt 0:03:26]} Rfb8 {[%emt 0:01:22]} 14. Ra3 {[%emt 0:02:16]} Ng4 {[%emt 0:05:09]} 15. Nb5 {[%emt 0:02:39]} Nc7 {[%emt 0:02:15]} 16. Rb3 {[%emt 0:13:14]} Nxb5 {[%emt 0:05:33]} 17. Rxb5 {[%emt 0:00:05]} Qa7 {[%emt 0:00:08]} 18. Rxb8+ {[%emt 0:00:20]} Rxb8 {[%emt 0:00:19]} 19. h3 {[%emt 0:04:22]} Ne5 {[%emt 0:00:34]} 20. Nd2 {[%emt 0:03:49]} Qa6 {[%emt 0:01:19]} 21. b3 {[%emt 0:04:55]} Qe2 {[%emt 0:08:33]} 22. Qd1 {[%emt 0:02:29]} Qd3 {[%emt 0:04:06]} 23. Re1 {[%emt 0:10:48]} f5 {[%emt 0:08:02]} 24. f4 {[%emt 0:11:07]} Nf7 {[%emt 0:00:39]} 25. Qe2 {[%emt 0:01:41]} Qxe2+ {[%emt 0:01:51]} 26. Rxe2 {[%emt 0:00:05]} fxe4 {[%emt 0:00:07]} 27. Rxe4 {[%emt 0:00:15]} Kf8 {[%emt 0:00:13]} 28. Re3 {[%emt 0:02:53]} Nd8 {[%emt 0:05:53]} 29. Nc4 {[%emt 0:01:03]} Bd4 {[%emt 0:00:39]} 30. Rf3 {[%emt 0:01:23]} Kg7 {[%emt 0:00:46]} 31. Bd2 {[%emt 0:03:18]} Kf6 {[%emt 0:05:34]} 32. g4 {[%emt 0:00:40]} h6 {[%emt 0:07:38]} 33. Ba5 {[%emt 0:06:34]} Nb7 {[%emt 0:03:35]} 34. Bc7 {[%emt 0:02:04]} Ra8 {[%emt 0:01:33]} 35. Rf1 {[%emt 0:03:54]} Ra6 {[%emt 0:02:14]} 36. Re1 {[%emt 0:00:52]} Kf7 {[%emt 0:00:46]} 37. h4 {[%emt 0:02:42]} Bc3 {[%emt 0:00:38]} 38. Re6 {[%emt 0:00:15]} Ba5 {[%emt 0:00:14]} 39. Ne5+ {[%emt 0:02:18]} Ke8 {[%emt 0:01:27]} 40. Nc6 {[%emt 0:03:49]} Bxc7 {[%emt 0:09:10]} 41. Rxe7+ {[%emt 0:00:07]} Kf8 {[%emt 0:00:06]} 42. Rxc7 {[%emt 0:00:04]} Na5 {[%emt 0:00:14]} 43. Nxa5 {[%emt 0:01:15]} Rxa5 {[%emt 0:00:09]} 44. Kf3 {[%emt 0:00:35]} Ra6 {[%emt 0:00:29]} 45. Rc6 {[%emt 0:00:38]} 1-0

[Event "V Copa Marcel Duchamp 2022"]
[Site "Montevideo"]
[Date "2022.02.19"]
[Round "9.19"]
[White "Muniz, Rafael"]
[Black "Nejanky, Maisa"]
[Result "0-1"]
[ECO "A05"]
[WhiteElo "2194"]
[BlackElo "1948"]
[Annotator "ChessBase"]
[PlyCount "96"]
[EventDate "2022.02.12"]
[EventCountry "URU"]
[SourceTitle "playchess.com"]
[Source "ChessBase"]
[SourceQuality "1"]
[TimeControl "5400+30"]

1. Nf3 {[%emt 0:00:33]} Nf6 {[%emt 0:01:25]} 2. g3 {[%emt 0:00:56]} c5 {[%emt 0:01:11]} 3. Bg2 {[%emt 0:00:21]} Nc6 {[%emt 0:01:30]} 4. O-O {[%emt 0:00:29]} g6 {[%emt 0:07:39]} 5. c4 {[%emt 0:02:02]} Bg7 {[%emt 0:00:08]} 6. Nc3 {[%emt 0:01:04]} d6 {[%emt 0:03:16]} 7. a3 {[%emt 0:00:44]} O-O {[%emt 0:01:24]} 8. Rb1 {[%emt 0:01:40]} Bf5 {[%emt 0:05:03]} 9. d3 {[%emt 0:01:36]} Qd7 {[%emt 0:03:59]} 10. Re1 {[%emt 0:06:15]} Bh3 {[%emt 0:00:19]} 11. Bh1 {[%emt 0:00:52]} h6 {[%emt 0:03:04]} 12. b4 {[%emt 0:01:33]} Nh5 {[%emt 0:12:53]} 13. Bd2 {[%emt 0:08:05]} Rac8 {[%emt 0:03:00]} 14. bxc5 {[%emt 0:12:33]} dxc5 {[%emt 0:00:22]} 15. Rb5 {[%emt 0:02:06]} b6 {[%emt 0:00:53]} 16. a4 {[%emt 0:06:19]} Bg4 {[%emt 0:08:30]} 17. Rb1 {[%emt 0:04:29]} Nf6 {[%emt 0:06:51]} 18. Qc1 {[%emt 0:02:02]} Kh7 {[%emt 0:00:20]} 19. Nd5 {[%emt 0:07:12]} Nxd5 {[%emt 0:08:24]} 20. cxd5 {[%emt 0:00:09]} Nb4 {[%emt 0:00:43]} 21. Bxb4 {[%emt 0:04:45]} cxb4 {[%emt 0:00:19]} 22. Qf4 {[%emt 0:03:45]} Bxf3 {[%emt 0:15:39]} 23. Bxf3 {[%emt 0:01:11]} a5 {[%emt 0:01:21]} 24. g4 {[%emt 0:04:13]} Bf6 {[%emt 0:04:08]} 25. Kg2 {[%emt 0:00:51]} Qxa4 {[%emt 0:02:32]} 26. h4 {[%emt 0:00:47]} Qd7 {[%emt 0:04:20]} 27. Be4 {[%emt 0:02:19]} Qd6 {[%emt 0:02:09]} 28. Qe3 {[%emt 0:01:06]} Rc5 {[%emt 0:01:26]} 29. g5 {[%emt 0:05:03]} Bg7 {[%emt 0:00:09]} 30. h5 {[%emt 0:00:59]} Rxd5 {[%emt 0:01:44]} 31. hxg6+ {[%emt 0:01:11]} fxg6 {[%emt 0:00:12]} 32. Rh1 {[%emt 0:00:21]} Re5 {[%emt 0:01:01]} 33. Rh4 {[%emt 0:03:33]} Qc5 {[%emt 0:00:31]} 34. gxh6 {[%emt 0:02:51]} Bf6 {[%emt 0:00:15]} 35. Qf4 {[%emt 0:04:30]} Rg5+ {[%emt 0:00:38]} 36. Kf1 {[%emt 0:01:21]} b3 {[%emt 0:00:32]} 37. d4 {[%emt 0:01:00]} Qd6 {[%emt 0:00:32]} 38. Qxd6 {[%emt 0:00:57]} exd6 {[%emt 0:00:01]} 39. Rxb3 {[%emt 0:00:10]} b5 {[%emt 0:00:44]} 40. Rc3 {[%emt 0:01:47]} Bxd4 {[%emt 0:00:43]} 41. Bxg6+ {[%emt 0:00:11]} Rxg6 {[%emt 0:00:23]} 42. Rxd4 {[%emt 0:00:07]} Rxh6 {[%emt 0:00:40]} 43. Rc7+ {[%emt 0:01:01]} Kh8 {[%emt 0:00:31]} 44. Rb7 {[%emt 0:01:08]} b4 {[%emt 0:00:28]} 45. Rd5 {[%emt 0:00:55]} Ra8 {[%emt 0:00:15]} 46. Rbb5 {[%emt 0:02:52]} a4 {[%emt 0:00:26]} 47. Rxb4 {[%emt 0:01:30]} a3 {[%emt 0:00:10]} 48. Rdb5 {[%emt 0:02:08]} a2 {[%emt 0:00:30]} 0-1

[Event "V Copa Marcel Duchamp 2022"]
[Site "Montevideo"]
[Date "2022.02.19"]
[Round "9.20"]
[White "Lavandeira, Juan Bautista"]
[Black "Avedisian, Alexander"]
[Result "1/2-1/2"]
[ECO "A45"]
[WhiteElo "1516"]
[BlackElo "1875"]
[Annotator "NA"]
[PlyCount "68"]
[EventDate "2022.02.12"]
[EventCountry "URU"]
[SourceTitle "playchess.com"]
[Source "ChessBase"]
[SourceQuality "1"]
[TimeControl "5400+30"]

1. d4 Nf6 2. g3 {[%emt 0:00:56]} g6 {[%emt 0:00:11]} 3. Bg2 {[%emt 0:00:05]} Bg7 {[%emt 0:00:05]} 4. e4 {[%emt 0:00:23]} d6 {[%emt 0:00:06]} 5. Ne2 {[%emt 0:00:25]} O-O {[%emt 0:00:11]} 6. O-O {[%emt 0:00:21]} Nc6 {[%emt 0:00:17]} 7. h3 {[%emt 0:00:42]} Re8 {[%emt 0:01:57]} 8. Be3 {[%emt 0:00:40]} e5 {[%emt 0:00:38]} 9. Nbc3 {[%emt 0:03:51]} exd4 {[%emt 0:00:21]} 10. Nxd4 {[%emt 0:00:10]} Nh5 {[%emt 0:04:36]} 11. Kh2 {[%emt 0:10:20]} Ne5 {[%emt 0:08:43]} 12. Qe2 {[%emt 0:07:25]} c5 {[%emt 0:09:24] [#]} 13. Nb3 {[%emt 0:04:56]} (13. Nf5 $1 $16 {[%cal Rf5g7]}) 13... Be6 {[%emt 0:01:28]} 14. Rad1 {[%emt 0:06:46]} (14. Nd2 $11) 14... Bc4 {[%emt 0:03:24]} 15. Qe1 {[%emt 0:02:05]} Bxf1 {[%emt 0:00:41]} 16. Qxf1 {[%emt 0:00:04]} c4 {[%emt 0:15:16]} 17. Nd2 {[%emt 0:16:43]} b5 {[%emt 0:04:24]} 18. Nxb5 {[%emt 0:02:33]} Qb8 {[%emt 0:01:37]} 19. a4 {[%emt 0:04:45]} a6 {[%emt 0:00:24]} 20. Na3 $1 {[%emt 0:00:08]} Qxb2 {[%emt 0:01:03]} 21. Ndxc4 {[%emt 0:01:03]} Nxc4 {[%emt 0:01:27]} 22. Nxc4 {[%emt 0:00:10]} Qxc2 {[%emt 0:00:50]} 23. Nxd6 {[%emt 0:01:19]} Red8 {[%emt 0:00:53]} 24. Bb6 {[%emt 0:00:34]} Rd7 {[%emt 0:04:16]} 25. a5 {[%emt 0:10:15]} Be5 $1 {[%emt 0:05:41]} 26. Rc1 $15 {[%emt 0:01:42]} Qb3 {[%emt 0:09:20]} 27. Nc4 {[%emt 0:04:02]} Nxg3 {[%emt 0:06:43]} 28. fxg3 {[%emt 0:00:55]} Qxg3+ {[%emt 0:00:21]} 29. Kg1 {[%emt 0:00:15]} Qh2+ {[%emt 0:00:31]} 30. Kf2 {[%emt 0:00:08]} Qg3+ {[%emt 0:01:42]} 31. Kg1 {[%emt 0:01:41]} Qh2+ {[%emt 0:02:02]} 32. Kf2 {[%emt 0:01:08]} Qg3+ {[%emt 0:07:12]} 33. Ke2 {[%emt 0:04:27]} Qd3+ {[%emt 0:03:13]} 34. Kf2 {[%emt 0:05:12]} Qg3+ {[%emt 0:00:30]} 1/2-1/2